Cogmind - Beta 16 @@@ ROGUE MODE // 2026.01.17 @ 17:30:53 Player: Lazz Result: Destroyed by P-80 Master with Gamma Rifle Performance ------------- Evolutions (8) 4000 Regions Visited (19) 3800 Robots Destroyed (106) 530 Value Destroyed (3953) 3953 Prototype IDs (12) 240 Alien Tech Used (0) 0 Bonus (1737) 1737 TOTAL SCORE: 14260 Bonus ------- High Alert Combat Kills 136 Follower Combat Kills 86 Entered Garrisons 400 Used RIF Installer 500 Entered DSFs 1000 Friendly Fire -385 Cogmind --------- Core Integrity 0/1450 Matter 178/300 Energy 100/100 System Corruption 15% Temperature Cool (0) Movement Rolling (90) Location -2/Research Parts ------- > --- POWER (3) -------- (None) > --- PROPULSION (7) --- Centrium Wheel > --- UTILITY (9) ------ Advanced Corruption Screen > --- WEAPON (4) ------- Enhanced Hardcell Cannon > --- INVENTORY (5) ---- Advanced Heavy Siege Treads High-capacity Storage Unit Matter Filter System Shield Peak State ------------ > --- POWER ------------ Improved Deuterium Engine > --- PROPULSION ------- Armored Medium Treads Armored Medium Treads Armored Medium Treads Myomer Leg Myomer Leg Myomer Leg > --- UTILITY ---------- Advanced Cryofiber Web Advanced Cooling System Advanced Targeting Computer Improved Weapon Cycler Layered Medium Armor Plating Layered Heavy Armor Plating > --- WEAPON ----------- Coil Gun Heavy Machine Gun KE Penetrator Hardcell Cannon > --- INVENTORY -------- Myomer Leg Myomer Leg Compact Battery Layered Medium Armor Plating Heavy Mace [Rating: 107] Favorites ----------- Power Improved Deuterium Engine Engine Improved Deuterium Engine Power Core Nuclear Core Reactor Particle Reactor Propulsion Myomer Leg Treads Armored Medium Treads Leg Myomer Leg Wheel Compact Wheel Hover Unit Combat Gravmag System Flight Unit Field Propulsion Array Utility Advanced Targeting Computer Device Advanced Heat Sink Storage Large Storage Unit Processor Advanced Targeting Computer Hackware Relay Coupler [Hunter] Protection Layered Heavy Armor Plating Weapon Coil Gun Energy Gun Improved Arc Projector Energy Cannon Matter Neutralizer Ballistic Gun Coil Gun Ballistic Cannon Advanced Assault Cannon Launcher Grenade Launcher Special Weapon Remote Datajack Impact Weapon Heavy Mace Slashing Weapon Blade Saw Build | -11 -10 -9 -9 -8 -8 -8 -7 -7 -7 -6 -5 -5 -5 -5 -4 -4 -4 -3 -2 ------- Run | Yrd Mat Mat Min Mat Sto Gar Fac DSF Gar Fac Fac Was Fac DSF Fac Upp Upp Res Res Slots Evolved 16 | . . 2 . 2 . . 2 . . 2 2 . . . 2 . . 2 2 Power 2 | . . . . . . . . . . . 1 . . . . . . . 1 Propulsion 5 | . . 1 . 1 . . 1 . . . . . . . 1 . . . 1 Utility 7 | . . 1 . 1 . . . . . 2 1 . . . . . . 2 . Weapon 2 | . . . . . . . 1 . . . . . . . 1 . . . . Parts Attached 143 | 7 1 2 . 7 4 11 1 3 16 16 13 3 1 5 8 4 2 14 25 Power 15 | 1 . . . . . 2 . . 2 3 1 . . . . 1 . 1 4 Engine 5 | 1 . . . . . 1 . . . . 1 . . . . 1 . . 1 Core 6 | . . . . . . 1 . . 2 3 . . . . . . . . . Reactor 4 | . . . . . . . . . . . . . . . . . . 1 3 Propulsion 52 | 2 . 1 . 5 . 4 . . 5 3 6 2 . 4 4 . 2 7 7 Treads 16 | . . . . 4 . 1 . . . 1 4 . . 2 1 . . 2 1 Leg 22 | . . . . . . 2 . . 4 1 2 2 . 2 3 . 2 2 2 Wheel 8 | 2 . 1 . 1 . 1 . . 1 1 . . . . . . . . 1 Hover 4 | . . . . . . . . . . . . . . . . . . 3 1 Flight 2 | . . . . . . . . . . . . . . . . . . . 2 Utility 37 | 2 . 1 . 2 2 2 . . 4 5 4 . 1 1 1 3 . 2 7 Device 16 | 1 . 1 . . 1 2 . . 1 3 2 . 1 1 . 1 . 1 1 Storage 5 | 1 . . . . . . . . 1 . . . . . . 1 . 1 1 Processor 4 | . . . . . . . . . . 2 . . . . . . . . 2 Hackware 2 | . . . . 1 . . . . 1 . . . . . . . . . . Protection 10 | . . . . 1 1 . . . 1 . 2 . . . 1 1 . . 3 Artifact . | . . . . . . . . . . . . . . . . . . . . Weapon 39 | 2 1 . . . 2 3 1 3 5 5 2 1 . . 3 . . 4 7 Energy Gun 7 | 1 . . . . . . . . 2 . . . . . . . . 1 3 Energy Cannon 3 | . . . . . . . . . . . . . . . . . . 2 1 Ballistic Gun 10 | 1 . . . . 1 1 . . 1 3 2 . . . 1 . . . . Ballistic Cannon 9 | . . . . . . . 1 3 . . . . . . 2 . . 1 2 Launcher 4 | . 1 . . . 1 1 . . . . . 1 . . . . . . . Special Weapon 2 | . . . . . . . . . . 1 . . . . . . . . 1 Impact Weapon 2 | . . . . . . 1 . . 1 . . . . . . . . . . Slashing Weapon 2 | . . . . . . . . . 1 1 . . . . . . . . . Piercing Weapon . | . . . . . . . . . . . . . . . . . . . . Special Melee Weapon . | . . . . . . . . . . . . . . . . . . . . Unidentified Prototypes 4 | . . . . . 1 . . . . 1 . 2 . . . . . . . Parts Lost 102 | . . . . . 2 11 . . 12 11 4 3 . 1 1 14 . 19 24 Power 11 | . . . . . . 2 . . 1 1 . . . . . 2 . 1 4 Propulsion 40 | . . . . . . 4 . . 7 4 2 2 . 1 . 4 . 8 8 Utility 23 | . . . . . 1 2 . . . 2 1 . . . 1 4 . 5 7 Weapon 28 | . . . . . 1 3 . . 4 4 1 1 . . . 4 . 5 5 Highest Loss Streak 12 | . . . . . 2 8 . . 6 8 3 3 . 1 1 8 . 12 12 To Critical Strikes 1 | . . . . . . . . . . . . . . . . . . 1 . Average Backups 6 | 2 7 7 8 7 7 7 7 7 7 12 11 10 3 3 4 4 . . 2 Power . | . . . . . . . 1 1 . 1 1 1 . . . . . . . Propulsion . | 1 4 2 2 1 1 . 1 1 . . . 1 . . 1 2 . . . Utility 2 | . 1 1 2 2 3 3 3 3 4 3 2 3 1 2 2 1 . . . Weapon 2 | . 2 3 4 4 3 2 2 2 2 6 4 3 1 1 . 1 . . . Tool/Special . | . . . . . . . . . . . . . . . . . . . . Unused Backups 20 | . 3 . 2 . 1 1 . . . 4 . 5 . . . . . . 4 Power 5 | . . . . . . 1 . . . 2 . 2 . . . . . . . Propulsion 3 | . 2 . . . . . . . . . . . . . . . . . 1 Utility 7 | . 1 . . . . . . . . 1 . 2 . . . . . . 3 Weapon 5 | . . . 2 . 1 . . . . 1 . 1 . . . . . . . Tool/Special . | . . . . . . . . . . . . . . . . . . . . Average Slot Usage (%) 73 | . 100 99 100 99 96 78 80 84 66 75 80 70 64 77 88 82 45 44 37 Engine 3 | . 14 11 11 9 9 6 7 7 . . 5 5 5 5 5 5 . . . Core 1 | . . . . . . 1 . . 4 5 . . . . . . . . . Treads 9 | . . . . 15 36 22 7 7 2 4 12 10 5 2 14 14 5 7 . Leg 8 | . . . . . . 7 15 15 13 8 8 9 11 17 15 14 13 11 1 Wheel 3 | . 28 32 33 20 . 4 7 7 3 . . . . . . . . . . Device 10 | . 14 22 22 17 2 4 15 15 7 16 13 7 8 15 14 14 15 10 . Storage 5 | . 14 11 11 9 9 9 7 7 7 6 5 2 . . . . . . 5 Processor 3 | . . . . . . . . . . 4 11 11 11 11 6 5 5 3 3 Protection 5 | . . . . 8 15 8 . . 4 2 2 5 5 5 8 9 . . 6 Energy Gun 4 | . 13 11 11 9 9 4 7 6 1 11 . . . . . . . 2 2 Ballistic Gun 7 | . 14 11 11 9 7 9 3 6 . 6 16 7 14 17 15 10 . . . Ballistic Cannon 2 | . . . . . . . 3 8 9 . . . . . 3 4 . . 2 Impact Weapon 1 | . . . . . . . 3 . 6 . . 4 . . 1 . 5 3 . Peak Build Rating 107 | 9 9 12 12 23 28 28 24 27 45 59 70 71 64 86 105 107 52 99 107 Average Rating 50 | 7 9 11 12 18 25 21 22 24 25 51 58 57 61 77 102 98 51 61 58 On Entrance 36 | . 9 9 12 12 23 25 19 24 27 45 36 70 52 64 86 100 36 52 22 Avg Prop Armor Cover (%) 12 | . . . . 7 . 22 19 16 13 8 5 5 4 10 11 11 15 18 11 Naked Turns 28 | . . . . . . . . . . . . . . . . . . 28 . Heaviest Build 71 | 15 15 16 16 23 25 26 22 28 55 57 68 68 47 49 67 67 7 60 71 Greatest Support 83 | 32 32 42 42 80 80 80 10 10 30 30 69 69 47 83 75 75 75 78 58 Greatest Overweight (x) 10 | . . . . 1 . 1 2 2 10 4 3 1 . 1 . . . 2 2 Average Overweight (x) . | . . . . . . . 1 1 1 1 . . . . . . . . . Largest Inventory Capacity 15 | 8 8 8 8 8 8 8 8 8 15 15 15 15 5 5 5 5 5 5 5 Average Capacity 9 | 7 8 8 8 8 8 8 8 8 13 15 15 10 5 5 5 5 5 5 5 Most Carried 15 | 7 8 8 8 8 8 8 8 8 15 15 15 15 4 5 5 5 2 2 5 Average Carried 7 | 3 7 7 7 7 7 7 7 7 8 13 11 10 2 3 4 4 . . 2 Final Capacity 15 | 8 8 8 8 8 8 8 8 8 15 15 15 5 5 5 5 5 5 5 5 Final Carried 15 | 7 8 8 8 8 8 7 7 8 12 12 15 4 2 5 5 3 . 2 5 Class Distribution -------------------- 41% | Mutant 24% | Tank 9% | Scavenger-Gunner 9% | Gunner 7% | Scavenger-Mutant 5% | Scavenger-Skirmisher Dominant Class ---------------- Mutant | -10/Materials Mutant | -9/Materials Mutant | -9/Mines Mutant | -8/Materials Mutant | -8/Storage Mutant | -8/Garrison Scavenger-Skirmisher | -7/Factory Scavenger-Skirmisher | -7/DSF Mutant | -7/Garrison Gunner | -6/Factory Scavenger-Gunner | -5/Factory Scavenger-Mutant | -5/Waste Scavenger-Mutant | -5/Factory Scavenger-Gunner | -5/DSF Tank | -4/Factory Tank | -4/Upper Caves Mutant | -4/Upper Caves Mutant | -3/Research Mutant | -2/Research Resources | -11 -10 -9 -9 -8 -8 -8 -7 -7 -7 -6 -5 -5 -5 -5 -4 -4 -4 -3 -2 ----------- Run | Yrd Mat Mat Min Mat Sto Gar Fac DSF Gar Fac Fac Was Fac DSF Fac Upp Upp Res Res Matter Collected 4290 | 398 14 15 60 . 358 830 . 4 653 311 659 . . . 225 425 39 155 144 Remotely . | . . . . . . . . . . . . . . . . . . . . Salvage Created 3900 | 223 45 15 . . 392 568 . . 329 590 659 . . 67 281 278 39 290 124 Parts 239 | 17 7 4 . . 38 48 . . 19 27 19 . . 6 25 13 . 11 5 Haulers Intercepted 2 | . . . . . . . . . . 1 . . . . 1 . . . . Recyclers Shooed . | . . . . . . . . . . . . . . . . . . . . Parts Field Recycled . | . . . . . . . . . . . . . . . . . . . . Retrieved Matter . | . . . . . . . . . . . . . . . . . . . . Parts Self-Destructed 15 | . . . . . . . . . . . . . . . . 13 2 . . Prevented . | . . . . . . . . . . . . . . . . . . . . Parts Restored . | . . . . . . . . . . . . . . . . . . . . Kills | -11 -10 -9 -9 -8 -8 -8 -7 -7 -7 -6 -5 -5 -5 -5 -4 -4 -4 -3 -2 ------- Run | Yrd Mat Mat Min Mat Sto Gar Fac DSF Gar Fac Fac Was Fac DSF Fac Upp Upp Res Res Combat Hostiles Destroyed 83 | . 3 . . . 9 19 . . 13 9 10 . . 1 4 9 . 4 2 Melee 1 | . . . . . . . . . 1 . . . . . . . . . . Guns 53 | . 3 . . . 7 14 . . . 6 10 . . 1 4 7 . 1 . Cannons 16 | . . . . . . . . . 10 . . . . . . 2 . 3 1 AOE 10 | . . . . . 2 5 . . . 3 . . . . . . . . . Classes Destroyed 19 | 3 1 1 . . 3 5 . . 2 2 . . . . . 1 1 . . Worker 6 | 2 . . . . . . . . . . . . . . 4 . . . . Builder 6 | . . . . . 2 . . . . 2 . . . . 1 . . . 1 Tunneler 4 | 4 . . . . . . . . . . . . . . . . . . . Hauler 2 | . . . . . . . . . . 1 . . . . 1 . . . . Recycler 1 | 1 . . . . . . . . . . . . . . . . . . . Watcher 3 | . . 1 . . 1 . . . . . . . . . 1 . . . . Swarmer 29 | . 3 . . . 3 6 . . 4 . . . . . 4 9 . . . Cutter 2 | . . . . . . . . . 2 . . . . . . . . . . Grunt 21 | . . . . . 3 6 . . 2 2 5 . . . . . . 3 . Brawler 2 | . . . . . . . . . . 1 1 . . . . . . . . Duelist 3 | . . . . . . 2 . . . 1 . . . . . . . . . Protector 1 | . . . . . . 1 . . . . . . . . . . . . . Sentry 8 | . . . . . 3 1 . . 1 . 2 . . . . . . . 1 Demolisher 1 | . . . . . . 1 . . . . . . . . . . . . . Specialist 3 | . . . . . . . . . 2 . . . . 1 . . . . . Hunter 7 | . . . . . . 1 . . 2 2 . . . . . . . 1 1 Programmer 6 | . . . . . . 1 . . . 3 2 . . . . . . . . Decomposer 1 | . . . . . . . . . . . . . . . . 1 . . . Samaritan 1 | . . . . . . . . . . . . . . . . . 1 . . Mutant 1 | . . . . . . . . . . . . . . . . 1 . . . Best Kill Streak 9 | 4 3 1 . . 7 8 . . 4 4 3 . . 1 9 5 . 1 2 Combat Bots Only 8 | . 3 . . . 4 8 . . 4 4 3 . . 1 4 5 . 1 1 Max Kills in Single Turn 4 | 1 2 1 . . 3 2 . . 2 3 1 . . 1 4 2 1 1 2 Gunslinging 1 | . 1 . . . . . . . . . . . . . . . . . . Exploded 3 | . . . . . 2 2 . . . 3 . . . . . . . . . Melee 1 | . . . . . . . . . 1 . . . . . . . . . . Uniques/NPCs Destroyed . | . . . . . . . . . . . . . . . . . . . . Combat | -11 -10 -9 -9 -8 -8 -8 -7 -7 -7 -6 -5 -5 -5 -5 -4 -4 -4 -3 -2 -------- Run | Yrd Mat Mat Min Mat Sto Gar Fac DSF Gar Fac Fac Was Fac DSF Fac Upp Upp Res Res Hostile Shots Fired 1710 | . 2 . 1 2 42 161 . 49 206 135 63 4 . 11 34 296 2 360 342 Missed 577 | . 1 . 1 . 9 46 . 20 66 34 16 . . 4 12 106 2 137 123 Hits 1133 | . 1 . . 2 33 115 . 29 140 101 47 4 . 7 22 190 . 223 219 Melee 38 | . . . . . . 9 . . 19 4 2 4 . . . . . . . Projectile 1095 | . 1 . . 2 33 106 . 29 121 97 45 . . 7 22 190 . 223 219 AOE 5 | . . . . . . 3 . . 1 . . . . . . . . 1 . Critical Strikes 55 | . . . . . 2 6 . . 11 1 5 1 . 1 1 10 . 7 10 Part Disruptions 4 | . . . . . . . . . . 2 . . . . . . . 1 1 Damage Taken 20954 | . 10 . . 29 831 1743 . 469 1864 1935 1085 179 . 215 418 3607 . 3756 4813 Core 4335 | . 10 . . . 113 210 . 96 547 394 111 . . . 27 254 . 1119 1454 Absorbed by Shields . | . . . . . . . . . . . . . . . . . . . . Redirected to Shielding 304 | . . . . . . . . . . . . . . . . . . . 304 Core Remaining (%) 63 | 100 96 . 100 . . 41 . . 8 53 . . . 88 . . 75 13 . Volleys Fired 296 | 26 4 1 . 1 25 71 . . 32 29 31 . . 2 15 24 . 15 20 Largest 4 | 1 2 2 . 2 2 2 . . 3 3 3 . . 3 4 4 . 2 3 Hottest 235 | 20 60 60 . 60 70 70 . . 120 160 93 . . 93 148 148 . 198 235 Shots Fired 659 | 26 8 2 . 2 49 128 . . 70 76 94 . . 6 57 72 . 29 40 Gun 491 | 26 7 2 . 2 43 119 . . . 72 94 . . 6 42 49 . 12 17 Cannon 148 | . . . . . . . . . 70 . . . . . 15 23 . 17 23 Launcher 16 | . 1 . . . 6 9 . . . . . . . . . . . . . Special 4 | . . . . . . . . . . 4 . . . . . . . . . Kinetic 482 | 26 4 1 . 1 18 93 . . 70 28 94 . . 6 57 72 . 3 9 Thermal 46 | . . . . . . . . . . . . . . . . . . 15 31 Explosive 16 | . 1 . . . 6 9 . . . . . . . . . . . . . Electromagnetic 111 | . 3 1 . 1 25 26 . . . 44 . . . . . . . 11 . Robot Hit Streak 20 | 5 5 6 . 7 10 5 . . 7 11 20 . . 3 11 9 . 7 7 Robot Miss Streak 12 | 1 . . . 1 5 12 . . 4 3 5 . . 1 3 7 . 6 4 Penetration Max 1 | . . . . . . . . . . 1 1 . . . 1 1 . . . Secondary Targets 3 | . 1 . . . . . . . . . 2 . . . . . . . . Max Gunslinging Chain 1 | . 1 . . . . . . . . . 1 . . . . . . . . Shots Hit Robots 384 | 18 3 1 . 1 32 61 . . 47 50 68 . . 4 28 30 1 16 24 Core Hits 187 | 7 3 1 . 1 22 37 . . 15 25 26 . . 3 14 16 . 8 9 Critical Kills 8 | . . . . . . 1 . . . 1 5 . . . . . . 1 . Critical Parts Destroyed 5 | . . . . . . . . . 2 . 2 . . . . 1 . . . Critical Strikes 15 | . . . . . . 1 . . 3 1 7 . . . 1 1 . 1 . Destroy 11 | . . . . . . 1 . . . 1 7 . . . . 1 . 1 . Blast 1 | . . . . . . . . . . . . . . . 1 . . . . Smash 2 | . . . . . . . . . 2 . . . . . . . . . . Sever 1 | . . . . . . . . . 1 . . . . . . . . . . Melee Attacks 51 | . . . . . . 1 . . 27 1 . 8 . . . . 2 12 . Impact 47 | . . . . . . 1 . . 24 . . 8 . . . . 2 12 . Slashing 4 | . . . . . . . . . 3 1 . . . . . . . . . Piercing . | . . . . . . . . . . . . . . . . . . . . Sneak Attacks 1 | . . . . . . . . . . . . . . . . . 1 . . Combat Hostiles . | . . . . . . . . . . . . . . . . . . . . Follow-up Attacks 3 | . . . . . . . . . 3 . . . . . . . . . . Damage Inflicted 10360 | 219 32 24 . 12 726 1294 . . 1431 1290 1683 . . 94 948 1002 122 592 891 Guns 5774 | 219 32 24 . 12 421 901 . . . 745 1683 . . 94 561 529 . 216 337 Cannons 2702 | . . . . . . . . . 1062 . . . . . 281 463 . 369 527 Explosions 1349 | . . . . . 305 393 . . . 545 . . . . 106 . . . . Melee 491 | . . . . . . . . . 369 . . . . . . . 122 . . Ramming 44 | . . . . . . . . . . . . . . . . 10 . 7 27 Kinetic 6646 | 219 11 . . . 203 702 . . 1062 493 1683 . . 94 842 992 . 36 309 Thermal 1103 | . . . . . 65 . . . . 149 . . . . . . . 334 555 Explosive 1135 | . . . . . 240 393 . . . 396 . . . . 106 . . . . Electromagnetic 941 | . 21 24 . 12 218 199 . . . 252 . . . . . . . 215 . Impact 456 | . . . . . . . . . 334 . . . . . . . 122 . . Slashing 35 | . . . . . . . . . 35 . . . . . . . . . . Piercing . | . . . . . . . . . . . . . . . . . . . . Highest Corruption 22 | . . . . . 5 8 . . 2 9 4 22 22 22 . . . 8 15 Average Corruption 5 | . . . . . 5 6 . . 1 2 3 14 22 22 . . . 5 12 Corruption Purged . | . . . . . . . . . . . . . . . . . . . . Corruption Blocked 5 | . . . . . . . . . . . . . . . . . . . 5 Effects 71 | . . . . . 3 23 . . 8 7 8 8 . 2 . . . 2 10 Message Errors 17 | . . . . . . 4 . . 4 . 3 2 . . . . . 1 3 Matter Fused 15 | . . . . . 2 4 . . . 2 2 2 . . . . . 1 2 Heat Flow Errors 8 | . . . . . 1 1 . . 1 2 . 2 . . . . . . 1 Energy Discharges 7 | . . . . . . 5 . . . . . . . . . . . . 2 Parts Rejected 1 | . . . . . . 1 . . . . . . . . . . . . . Parts Fused 1 | . . . . . . 1 . . . . . . . . . . . . . Data Loss (minor) 8 | . . . . . . 1 . . 1 2 . 1 . 2 . . . . 1 Data Loss (major) 3 | . . . . . . 1 . . 1 . 1 . . . . . . . . Misfires 5 | . . . . . . 2 . . . 1 1 . . . . . . . 1 Alerts 2 | . . . . . . 1 . . . . 1 . . . . . . . . Misdirections 1 | . . . . . . . . . . . . 1 . . . . . . . Weapon Failures 3 | . . . . . . 2 . . 1 . . . . . . . . . . Overload Shots . | . . . . . . . . . . . . . . . . . . . . Overflow Damage 244 | . . . . . . . . . 80 15 . . . . 17 12 120 . . Projectiles 51 | . . . . . . . . . 22 . . . . . 17 12 . . . Explosions 15 | . . . . . . . . . . 15 . . . . . . . . . Melee 178 | . . . . . . . . . 58 . . . . . . . 120 . . Knockbacks 25 | . . . . . . . . . 12 . . . . . 4 7 . . 2 Impact 4 | . . . . . . . . . 3 . . . . . . . . . 1 Kinetic 19 | . . . . . . . . . 8 . . . . . 4 6 . . 1 Secondary 2 | . . . . . . . . . 1 . . . . . . 1 . . . Self-Inflicted Damage 562 | . . . . . 47 130 . . . 381 . . . . . . . . 4 Shots 9 | . . . . . 1 4 . . . 4 . . . . . . . . . Rammed 2 | . . . . . . . . . . . . . . . . . . . 2 Targets Rammed 17 | . . . . . . . . . . . . . . . . 3 . 3 11 Kicked 15 | . . . . . . . . . . . . . . . . 3 . 3 9 Crushed . | . . . . . . . . . . . . . . . . . . . . Highest Temperature 406 | . . . . . 158 226 . . 194 227 5 186 . 14 78 88 . 348 406 Average Temperature 79 | . . . . . 48 29 . . 73 60 5 95 . 14 40 29 . 175 123 Received Heat Transfer 1950 | . . . . 9 198 216 . 30 309 54 171 . . 30 81 573 . 198 81 Effects 5 | . . . . . . . . . . . . . . . . . . 1 4 Shutdowns 1 | . . . . . . . . . . . . . . . . . . . 1 Interference 4 | . . . . . . . . . . . . . . . . . . 1 3 Siege Activations . | . . . . . . . . . . . . . . . . . . . . Martial Activations . | . . . . . . . . . . . . . . . . . . . . Shielding Activations . | . . . . . . . . . . . . . . . . . . . . Robots Disrupted 2 | . . . . 1 . . . . . 1 . . . . . . . . . Combat Hostiles 1 | . . . . 1 . . . . . . . . . . . . . . . Robots Corrupted 3 | . . . . . . . . . 2 . . . . . . . 1 . . Combat Hostiles 2 | . . . . . . . . . 2 . . . . . . . . . . Parts Fried 10 | . . . . . . . . . 3 2 . . . . . . . 5 . Impact Corruptions 9 | . . . . . . . . . 2 . . . . . . . 7 . . Robots Melted 1 | . . . . . . . . . . . . . . . . . . . 1 Combat Hostiles 1 | . . . . . . . . . . . . . . . . . . . 1 Parts Melted . | . . . . . . . . . . . . . . . . . . . . Heat Transferred 1286 | . . . . . 100 . . . . 150 . . . . . . . 407 629 Parts Sabotaged . | . . . . . . . . . . . . . . . . . . . . Parts Stolen . | . . . . . . . . . . . . . . . . . . . . Parts Stripped . | . . . . . . . . . . . . . . . . . . . . Power Chain Reactions 2 | . . . . . 1 . . . . 1 . . . . . . . . . Alert | -11 -10 -9 -9 -8 -8 -8 -7 -7 -7 -6 -5 -5 -5 -5 -4 -4 -4 -3 -2 ------- Run | Yrd Mat Mat Min Mat Sto Gar Fac DSF Gar Fac Fac Was Fac DSF Fac Upp Upp Res Res Maximum Alert Level 2 | . . . . . . 2 1 1 2 1 . . . . 1 . . . . Low Security (%) 71 | 100 100 100 100 100 100 14 . . 2 81 100 100 100 100 62 . . 100 100 Level 1 16 | . . . . . . 31 100 100 41 18 . . . . 37 . . . . Level 2 11 | . . . . . . 53 . . 55 . . . . . . . . . . Level 3 . | . . . . . . . . . . . . . . . . . . . . Level 4 . | . . . . . . . . . . . . . . . . . . . . Level 5 . | . . . . . . . . . . . . . . . . . . . . High Security . | . . . . . . . . . . . . . . . . . . . . Max Security . | . . . . . . . . . . . . . . . . . . . . Peak Influence 585 | 10 84 22 . . 176 585 306 248 535 280 104 30 . 35 277 . . 37 129 Initial 306 | . . 22 . . . 114 306 203 186 280 83 30 . 3 18 . . . . Average 133 | 2 38 5 . . 71 397 299 217 380 143 48 8 . 19 118 . . 4 13 Influence Increases 3396 | 35 114 7 . . 306 581 5 45 469 418 310 8 5 35 321 310 . 162 265 Destroy 0b10 Robot/C 1680 | . 60 . . . 180 360 . . 260 220 200 . . 20 80 180 . 80 40 Destroy 0b10 Robot/NC 115 | 35 . 5 . . 15 5 . . . 15 . . . . 35 . . . 5 Destroy Leader 260 | . 10 2 . . 52 20 . . 20 52 50 . . . 14 10 . 10 20 Allied During Kill 4 | . . . . . . . . . . 4 . . . . . . . . . Successful Hack 82 | . 20 . . . 7 . 5 . . 24 . . 5 . 5 . . 11 5 Select Force Hacks 20 | . . . . . . . . . . . 20 . . . . . . . . Disable Machine 135 | . 15 . . . . . . . . 60 . . . . 45 . . 15 . Anti-Garrison Action 200 | . . . . . . 100 . . 100 . . . . . . . . . . Destroy Structure 330 | . 9 . . . 37 51 . . 14 43 10 8 . . 112 . . 16 30 Lose Combat Pursuer 570 | . . . . . 15 45 . 45 75 . 30 . . 15 30 120 . 30 165 Influence Decreases 3303 | 35 60 61 . . 130 172 299 88 182 783 392 96 . 5 191 475 . 162 172 Entered New Map 1004 | . . 32 . . . 62 279 88 62 255 87 58 . 2 17 62 . . . Time Decay 1549 | 35 60 29 . . 110 . 20 . . 398 265 24 . . 164 273 . 85 86 Lost Part 730 | . . . . . 20 110 . . 120 110 40 14 . 3 10 140 . 77 86 Lost Ally 20 | . . . . . . . . . . 20 . . . . . . . . . Squads Dispatched 26 | . . 1 . . 2 . 1 1 . 6 4 . . . 3 . . 2 6 Investigation 4 | . . . . . . . 1 . . . 1 . . . . . . 1 1 Extermination 9 | . . . . . . . . . . 2 2 . . . 1 . . 1 3 Reinforcement 8 | . . 1 . . 1 . . 1 . 2 . . . . 1 . . . 2 Assault . | . . . . . . . . . . . . . . . . . . . . Garrison 5 | . . . . . 1 . . . . 2 1 . . . 1 . . . . Intercept . | . . . . . . . . . . . . . . . . . . . . Searches Triggered . | . . . . . . . . . . . . . . . . . . . . Construction Impeded 2 | . . . . . 1 . . . . . . . . . 1 . . . . Haulers Reinforced 2 | . . . . . . . . . . 2 . . . . . . . . . Active Scanning Responses . | . . . . . . . . . . . . . . . . . . . . Cargo Convoy Interrupts . | . . . . . . . . . . . . . . . . . . . . Stealth | -11 -10 -9 -9 -8 -8 -8 -7 -7 -7 -6 -5 -5 -5 -5 -4 -4 -4 -3 -2 --------- Run | Yrd Mat Mat Min Mat Sto Gar Fac DSF Gar Fac Fac Was Fac DSF Fac Upp Upp Res Res Distress Signals 7 | . 1 . . . 2 . . . . 2 . . . . 1 . . 1 . Communications Jammed . | . . . . . . . . . . . . . . . . . . . . Distress Signals . | . . . . . . . . . . . . . . . . . . . . Times Spotted 189 | . 4 2 2 1 13 22 . 6 20 18 12 7 . 2 7 26 5 18 24 Peak Tracking Total 13 | . 4 2 . 1 5 6 . 5 6 4 3 6 . 1 4 13 5 11 10 Tactical Retreats 27 | . . . . . 1 3 . 3 5 . 1 1 . 1 2 4 . 2 4 Traps | -11 -10 -9 -9 -8 -8 -8 -7 -7 -7 -6 -5 -5 -5 -5 -4 -4 -4 -3 -2 ------- Run | Yrd Mat Mat Min Mat Sto Gar Fac DSF Gar Fac Fac Was Fac DSF Fac Upp Upp Res Res Traps Triggered 12 | . . . . . . 2 . 3 3 . 1 . . . . . . 1 2 Indirectly . | . . . . . . . . . . . . . . . . . . . . Trap Hack Attempts . | . . . . . . . . . . . . . . . . . . . . Triggered . | . . . . . . . . . . . . . . . . . . . . Disarmed . | . . . . . . . . . . . . . . . . . . . . Reprogrammed . | . . . . . . . . . . . . . . . . . . . . Reused . | . . . . . . . . . . . . . . . . . . . . Traps Extracted . | . . . . . . . . . . . . . . . . . . . . Installed . | . . . . . . . . . . . . . . . . . . . . Triggered . | . . . . . . . . . . . . . . . . . . . . Machines | -11 -10 -9 -9 -8 -8 -8 -7 -7 -7 -6 -5 -5 -5 -5 -4 -4 -4 -3 -2 ---------- Run | Yrd Mat Mat Min Mat Sto Gar Fac DSF Gar Fac Fac Was Fac DSF Fac Upp Upp Res Res Machines Disabled 11 | . 1 . . . . . . . 2 4 . . . . 3 . . 1 . Max in Single Turn 4 | . 1 . . . . . . . 1 4 . . . . 2 . . 1 . Garrison Relay 1 | . . . . . . . . . 1 . . . . . . . . . . Machines Repaired . | . . . . . . . . . . . . . . . . . . . . Machines Dismantled . | . . . . . . . . . . . . . . . . . . . . Machines Sabotaged . | . . . . . . . . . . . . . . . . . . . . Overloaded Fab Kills . | . . . . . . . . . . . . . . . . . . . . Hacking | -11 -10 -9 -9 -8 -8 -8 -7 -7 -7 -6 -5 -5 -5 -5 -4 -4 -4 -3 -2 --------- Run | Yrd Mat Mat Min Mat Sto Gar Fac DSF Gar Fac Fac Was Fac DSF Fac Upp Upp Res Res Machines Accessed 26 | . 4 1 . 1 3 2 2 . 1 2 1 . 1 . 2 . . 3 3 Terminals 19 | . 3 1 . 1 1 2 1 . 1 1 . . 1 . 1 . . 3 3 Fabricators 2 | . . . . . . . . . . 1 1 . . . . . . . . Repair Stations . | . . . . . . . . . . . . . . . . . . . . Recycling Units 2 | . 1 . . . 1 . . . . . . . . . . . . . . Scanalyzers 2 | . . . . . . . 1 . . . . . . . 1 . . . . Garrison Access 1 | . . . . . 1 . . . . . . . . . . . . . . Total Hacks 62 | . 13 1 . 5 7 5 4 . 3 3 3 . 1 . 3 . . 8 6 Successful 21 | . 6 . . 2 2 . 1 . . 2 2 . 1 . 1 . . 2 2 Failed 41 | . 7 1 . 3 5 5 3 . 3 1 1 . . . 2 . . 6 4 Catastrophic 13 | . 3 1 . . 2 3 1 . . . . . . . . . . 1 2 Database Lockouts . | . . . . . . . . . . . . . . . . . . . . Manual 22 | . 9 1 . 1 2 . . . . . 2 . . . . . . 5 2 Terminals 47 | . 12 1 . 5 2 5 2 . 3 1 . . 1 . 1 . . 8 6 Fabricators 5 | . . . . . . . . . . 2 3 . . . . . . . . Repair Stations . | . . . . . . . . . . . . . . . . . . . . Recycling Units 3 | . 1 . . . 2 . . . . . . . . . . . . . . Scanalyzers 4 | . . . . . . . 2 . . . . . . . 2 . . . . Garrison Access 3 | . . . . . 3 . . . . . . . . . . . . . . Terminal Hacks 16 | . 5 . . 2 1 . 1 . . 1 . . 1 . 1 . . 2 2 Robot Analysis 2 | . 2 . . . . . . . . . . . . . . . . . . Prototype ID Bank 3 | . 1 . . 1 . . . . . 1 . . . . . . . . . Open Door 1 | . . . . . 1 . . . . . . . . . . . . . . Open DSF 5 | . . . . . . . 1 . . . . . 1 . 1 . . 1 1 Branch Access Points 1 | . . . . . . . . . . . . . . . . . . . 1 Terminal Index 2 | . 1 . . . . . . . . . . . . . . . . 1 . Registered Components 1 | . . . . 1 . . . . . . . . . . . . . . . Zone Layout 1 | . 1 . . . . . . . . . . . . . . . . . . Fabricator Hacks 2 | . . . . . . . . . . 1 1 . . . . . . . . Network Status 2 | . . . . . . . . . . 1 1 . . . . . . . . Repair Station Hacks . | . . . . . . . . . . . . . . . . . . . . Recycling Unit Hacks . | . . . . . . . . . . . . . . . . . . . . Scanalyzer . | . . . . . . . . . . . . . . . . . . . . Garrison Access Hacks 1 | . . . . . 1 . . . . . . . . . . . . . . Unlock Access 1 | . . . . . 1 . . . . . . . . . . . . . . Unauthorized Hacks 2 | . 1 . . . . . . . . . 1 . . . . . . . . Terminals . | . . . . . . . . . . . . . . . . . . . . Fabricators 1 | . . . . . . . . . . . 1 . . . . . . . . Download 1 | . . . . . . . . . . . 1 . . . . . . . . Repair Stations . | . . . . . . . . . . . . . . . . . . . . Recycling Units 1 | . 1 . . . . . . . . . . . . . . . . . . Mask 1 | . 1 . . . . . . . . . . . . . . . . . . Scanalyzers . | . . . . . . . . . . . . . . . . . . . . Garrison Access . | . . . . . . . . . . . . . . . . . . . . Data Cores Recovered . | . . . . . . . . . . . . . . . . . . . . Used . | . . . . . . . . . . . . . . . . . . . . Hacking Detections 20 | . 3 1 . 1 3 2 1 . 1 2 . . 1 . 1 . . 2 2 Full Trace Events 7 | . . . . . 1 2 1 . 1 . . . . . . . . 1 1 Feedback Events . | . . . . . . . . . . . . . . . . . . . . Feedback Blocked . | . . . . . . . . . . . . . . . . . . . . Robot Schematics Acquired . | . . . . . . . . . . . . . . . . . . . . Robots Built . | . . . . . . . . . . . . . . . . . . . . Authchips . | . . . . . . . . . . . . . . . . . . . . Time . | . . . . . . . . . . . . . . . . . . . . Total Robot Build Rating . | . . . . . . . . . . . . . . . . . . . . Part Schematics Acquired . | . . . . . . . . . . . . . . . . . . . . Parts Built . | . . . . . . . . . . . . . . . . . . . . Authchips . | . . . . . . . . . . . . . . . . . . . . Time . | . . . . . . . . . . . . . . . . . . . . Total Part Build Rating . | . . . . . . . . . . . . . . . . . . . . Part Studies Acquired . | . . . . . . . . . . . . . . . . . . . . Parts Repaired . | . . . . . . . . . . . . . . . . . . . . Time . | . . . . . . . . . . . . . . . . . . . . Parts Recycled . | . . . . . . . . . . . . . . . . . . . . Recycled Matter . | . . . . . . . . . . . . . . . . . . . . Retrieved Matter . | . . . . . . . . . . . . . . . . . . . . Retrieved Components . | . . . . . . . . . . . . . . . . . . . . Parts Scanalyzed . | . . . . . . . . . . . . . . . . . . . . Part Schematics Acquired . | . . . . . . . . . . . . . . . . . . . . Parts Damaged . | . . . . . . . . . . . . . . . . . . . . Bothacking | -11 -10 -9 -9 -8 -8 -8 -7 -7 -7 -6 -5 -5 -5 -5 -4 -4 -4 -3 -2 ------------ Run | Yrd Mat Mat Min Mat Sto Gar Fac DSF Gar Fac Fac Was Fac DSF Fac Upp Upp Res Res Used RIF Installer 1 | . . . . . . 1 . . . . . . . . . . . . . Robots Hacked 1 | . . . . . . . . . . 1 . . . . . . . . . Non-combat . | . . . . . . . . . . . . . . . . . . . . Combat 1 | . . . . . . . . . . 1 . . . . . . . . . Robot Hacks Applied 1 | . . . . . . . . . . 1 . . . . . . . . . formatsys_high 1 | . . . . . . . . . . 1 . . . . . . . . . Relay Couplers Released 8 | . . . . . . 3 . . 5 . . . . . . . . . . Machine Destruction 5 | . . . . . . . . . 5 . . . . . . . . . . Programmers 3 | . . . . . . 3 . . . . . . . . . . . . . Attached 1 | . . . . . . . . . 1 . . . . . . . . . . Fabnet Peak Effective % . | . . . . . . . . . . . . . . . . . . . . Robots Rewired 1 | . . . . 1 . . . . . . . . . . . . . . . Allies Hacked . | . . . . . . . . . . . . . . . . . . . . Hacks Repelled . | . . . . . . . . . . . . . . . . . . . . Allies | -11 -10 -9 -9 -8 -8 -8 -7 -7 -7 -6 -5 -5 -5 -5 -4 -4 -4 -3 -2 -------- Run | Yrd Mat Mat Min Mat Sto Gar Fac DSF Gar Fac Fac Was Fac DSF Fac Upp Upp Res Res Total Allies 2 | . . . . 1 . . . . . 1 . . . . . . . . . Largest Group 1 | . . . . 1 . . . . . 1 . . . . . . . . . Highest-Rated Group 41 | . . . . 15 . . . . . 41 . . . . . . . . . Highest-Rated Ally 41 | . . . . 15 . . . . . 41 . . . . . . . . . Total Orders . | . . . . . . . . . . . . . . . . . . . . Ally Attacks 15 | . . . . . . . . . . 15 . . . . . . . . . Total Damage 416 | . . . . . . . . . . 416 . . . . . . . . . Kills 2 | . . . . . . . . . . 2 . . . . . . . . . Allies Corrupted 1 | . . . . . . . . . . 1 . . . . . . . . . Allies Melted . | . . . . . . . . . . . . . . . . . . . . Intel | -11 -10 -9 -9 -8 -8 -8 -7 -7 -7 -6 -5 -5 -5 -5 -4 -4 -4 -3 -2 ------- Run | Yrd Mat Mat Min Mat Sto Gar Fac DSF Gar Fac Fac Was Fac DSF Fac Upp Upp Res Res Active Infowar (turns) 2685 | 93 223 132 143 192 85 59 43 116 314 933 352 . . . . . . . . Sensors 1062 | . . 132 143 192 85 59 43 116 292 . . . . . . . . . . Terrain 1292 | 93 223 132 143 180 . 48 43 116 314 . . . . . . . . . . Traps 1285 | . . . . . . . . . . 933 352 . . . . . . . . Robot Analysis Total 2 | . 2 . . . . . . . . . . . . . . . . . . Derelict Logs Recovered 2 | . . . . . . . . . . . . . . . . 2 . . . Drone Launches . | . . . . . . . . . . . . . . . . . . . . Drone Recoveries . | . . . . . . . . . . . . . . . . . . . . Exploration | -11 -10 -9 -9 -8 -8 -8 -7 -7 -7 -6 -5 -5 -5 -5 -4 -4 -4 -3 -2 ------------- Run | Yrd Mat Mat Min Mat Sto Gar Fac DSF Gar Fac Fac Was Fac DSF Fac Upp Upp Res Res Turns Passed 7154 | 161 223 132 143 192 319 626 43 116 760 957 699 139 12 53 530 629 70 481 869 Spaces Moved 4171 | 97 203 135 134 141 134 323 38 86 289 409 305 76 8 35 287 464 52 291 664 Core 83 | 15 . . . . . . . . 5 . . . . . . . . 55 8 Treads 604 | . . . . 39 134 113 . . . 16 254 39 . 1 . . . 8 . Legs 1729 | . . . . . . 35 . . 134 315 51 37 8 34 287 464 52 209 103 Wheels 1207 | 82 203 135 134 102 . 175 38 86 150 78 . . . . . . . . 24 Hover 299 | . . . . . . . . . . . . . . . . . . 19 280 Flight 249 | . . . . . . . . . . . . . . . . . . . 249 Fastest Speed 37 | 50 100 93 93 90 170 80 95 95 105 140 160 120 120 100 100 120 120 50 37 Average Speed 128 | 92 100 93 93 112 170 122 104 109 165 194 169 147 120 108 118 120 120 106 100 Slowest Speed 550 | 100 100 93 93 250 170 170 110 110 550 330 330 240 120 250 120 120 120 190 217 Overloaded Moves . | . . . . . . . . . . . . . . . . . . . . Propulsion Burnouts . | . . . . . . . . . . . . . . . . . . . . Robots Hopped 11 | . . . . . . . . . . . . . . . . . . . 11 Potential Cave-ins 8 | . . . . . . . . . . . . 4 . . . . . 4 . Cave-ins Triggered 1 | . . . . . 1 . . . . . . . . . . . . . . Exploration Rate (%) 27 | 5 32 16 48 14 29 48 1 78 41 12 8 62 1 42 12 67 10 12 18 Regions Visited 19 Branch Regions 4 Pre-discovered Areas 1 | . . . 1 . . . . . . . . . . . . . . . . Known Exits Taken 4 | . . . . . 1 . 1 . . . . . 1 . . . . 1 . Unknown Exits Taken 9 | 1 1 1 1 1 . . . . . 1 . . . . 1 1 1 . . Scrap Searched 4 | . . . 1 . . . . . . . . . . . . 3 . . . Spaces Dug 23 | . . . . . . . . . 4 . . 8 . . . . . 11 . Terrain Destroyed 270 | . 8 . . . 34 57 . . 4 55 4 8 . . 62 16 . 12 10 Melee 23 | . . . . . . . . . 4 . . 8 . . . . . 11 . Projectile 34 | . . . . . . . . . . 2 2 . . . 3 16 . 1 10 AOE 211 | . 8 . . . 34 57 . . . 53 . . . . 59 . . . . Terrain Rammed . | . . . . . . . . . . . . . . . . . . . . Walls Destroyed . | . . . . . . . . . . . . . . . . . . . . Machines Disabled . | . . . . . . . . . . . . . . . . . . . . Actions | -11 -10 -9 -9 -8 -8 -8 -7 -7 -7 -6 -5 -5 -5 -5 -4 -4 -4 -3 -2 --------- Run | Yrd Mat Mat Min Mat Sto Gar Fac DSF Gar Fac Fac Was Fac DSF Fac Upp Upp Res Res Total 5387 | 142 217 139 154 172 185 460 40 108 470 516 418 87 10 44 455 497 56 405 812 Wait 507 | . 2 . 15 7 16 27 . . 56 38 52 . . . 134 3 . 68 89 Move 4133 | 96 202 134 133 140 134 322 37 85 288 408 305 75 7 34 286 463 51 290 643 Hop 10 | . . . . . . . . . . . . . . . . . . . 10 Pick Up 115 | 13 4 2 3 2 2 13 1 1 25 15 15 . . 3 3 . . 3 10 Fast Attach 56 | 1 . . . 4 1 3 . 2 3 2 1 1 . 5 1 2 . 13 17 Attach 85 | 6 . 2 . 2 1 13 1 . 19 9 12 1 2 . 3 2 3 1 8 Detach 2 | . . . . . . 1 . . . . . . . . . . . . 1 Swap 33 | . 2 . . 1 3 4 1 1 6 5 . 2 1 . 6 . . . 1 Drop 43 | . 3 . 3 4 3 5 . 3 2 9 2 . . . 7 . . . 2 Fire 296 | 26 4 1 . 1 25 71 . . 32 29 31 . . 2 15 24 . 15 20 Melee 45 | . . . . . . 1 . . 21 1 . 8 . . . . 2 12 . Ram 2 | . . . . . . . . . . . . . . . . . . . 2 Kick 15 | . . . . . . . . . . . . . . . . 3 . 3 9 Crush . | . . . . . . . . . . . . . . . . . . . . Escape Stasis 34 | . . . . . . . . 16 18 . . . . . . . . . . Rewire 11 | . . . . 11 . . . . . . . . . . . . . . . Trap . | . . . . . . . . . . . . . . . . . . . . Miscellaneous . | . . . . . . . . . . . . . . . . . . . . Route ------- -11/Scrapyard -10/Materials -9/Materials -9/Mines -8/Materials (discovered 2 exits: *Fac / *Sto) -8/Storage -8/Garrison -7/Factory -7/DSF -7/Garrison -6/Factory -5/Factory -5/Waste -5/Factory -5/DSF -4/Factory -4/Upper Caves -4/Upper Caves -3/Research (discovered 2 exits: *Res x2) -2/Research (discovered 2 exits: Tes x2) History --------- Turn | Location | Event 12 | -11/Scrapyard | Discovered new exit (range 16) 162 | -11/Scrapyard | Entered Materials 289 | -10/Materials | Discovered new exit (range 9) 314 | -10/Materials | Build established: Mutant 385 | -10/Materials | Entered another Materials area 385 | -9/Materials | Evolved 2 slots: Propulsion x1, Utility x1 500 | -9/Materials | Discovered new exit (range 12) 517 | -9/Materials | Entered Mines 556 | -9/Mines | Learned location of Storage (-8) 565 | -9/Mines | Discovered new exit (range 12) 636 | -9/Mines | Received a Rocket Launcher from a helpful Derelict 660 | -9/Mines | Entered Materials 660 | -8/Materials | Evolved 2 slots: Propulsion x1, Utility x1 812 | -8/Materials | Discovered new exit (range 9) 850 | -8/Materials | Discovered new exit (range 16) 852 | -8/Materials | Entered Storage 1069 | -8/Storage | Crushed by falling debris 1097 | -8/Storage | Garrison activated, responded to threat 1171 | -8/Storage | Identified exit to Garrison 1171 | -8/Storage | Entered Garrison 1233 | -8/Garrison | Triggered checkpoint 1361 | -8/Garrison | Triggered checkpoint 1425 | -8/Garrison | Triggered checkpoint 1496 | -8/Garrison | Destroyed 8 combat bots 1529 | -8/Garrison | Triggered checkpoint 1544 | -8/Garrison | Lost 8 parts (1p3n2u2w) 1574 | -8/Garrison | Core integrity fell below 50% 1634 | -8/Garrison | Lost 3 parts (1p1n1w) 1663 | -8/Garrison | Triggered checkpoint 1698 | -8/Garrison | Discovered new exit (range 14) 1701 | -8/Garrison | Triggered checkpoint 1766 | -8/Garrison | Installed Relay Interface Framework 1797 | -8/Garrison | Entered Factory 1797 | -7/Factory | Evolved 2 slots: Propulsion x1, Weapon x1 1840 | -7/Factory | Identified exit to DSF 1840 | -7/Factory | Entered DSF 1871 | -7/DSF | Additional patrols routed to DSF 1932 | -7/DSF | Discovered new exit (range 15) 1956 | -7/DSF | Entered Garrison 2183 | -7/Garrison | Triggered checkpoint 2200 | -7/Garrison | Triggered checkpoint 2304 | -7/Garrison | Core integrity fell below 50% 2364 | -7/Garrison | Lost 6 parts (3n3w) 2418 | -7/Garrison | Triggered checkpoint 2428 | -7/Garrison | Core integrity fell below 20% 2471 | -7/Garrison | Lost 3 parts (1p1n1w) 2610 | -7/Garrison | Garrison Relay disabled 2686 | -7/Garrison | Discovered new exit (range 10) 2698 | -7/Garrison | Triggered checkpoint 2716 | -7/Garrison | Entered Factory 2716 | -6/Factory | Evolved 2 slots: Utility x2 2914 | -6/Factory | Build established: Tank 3440 | -6/Factory | Build established: Gunner 3510 | -6/Factory | Garrison activated, responded to threat 3604 | -6/Factory | Discovered new exit (range 13) 3635 | -6/Factory | Lost 8 parts (1p2n1u4w) 3673 | -6/Factory | Entered another Factory area 3673 | -5/Factory | Evolved 2 slots: Power x1, Utility x1 3960 | -5/Factory | Found Prototype Launcher 4012 | -5/Factory | Garrison activated, responded to threat 4104 | -5/Factory | Lost 3 parts (1n1u1w) 4132 | -5/Factory | Build established: Scavenger-Gunner 4372 | -5/Factory | Discovered new exit (range 9) 4372 | -5/Factory | Sucked down chute 4372 | -5/Factory | Entered Waste 4374 | -5/Waste | Identified Mni. Smartbomb Launcher 4387 | -5/Waste | EMP discharged 4387 | -5/Waste | System corruption reached 10% 4407 | -5/Waste | Spotted C-40 Crusher 4415 | -5/Waste | Spotted C-40 Crusher 4422 | -5/Waste | Spotted C-40 Crusher 4422 | -5/Waste | Spotted C-40 Crusher 4423 | -5/Waste | Spotted C-40 Crusher 4428 | -5/Waste | Crushed by Compactor (1 part destroyed, 1 dropped) 4431 | -5/Waste | Crushed by Compactor (1 part destroyed, 1 dropped) 4435 | -5/Waste | Spotted C-40 Crusher 4449 | -5/Waste | Crushed by Compactor (0 parts destroyed, 2 dropped) 4462 | -5/Waste | Lost 3 parts (2n1w) 4487 | -5/Waste | EMP discharged 4491 | -5/Waste | Discovered new exit (range 10) 4511 | -5/Waste | Entered Factory 4523 | -5/Factory | Identified exit to DSF 4523 | -5/Factory | Entered DSF 4554 | -5/DSF | Discovered new exit (range 16) 4570 | -5/DSF | Additional patrols routed to DSF 4576 | -5/DSF | Entered Factory 4576 | -4/Factory | Evolved 2 slots: Propulsion x1, Weapon x1 4843 | -4/Factory | Garrison activated, responded to threat 4971 | -4/Factory | Build established: Tank 5058 | -4/Factory | Discovered new exit (range 12) 5106 | -4/Factory | Entered Upper Caves 5109 | -4/Upper Caves | Encountered a Warlord checkpoint 5433 | -4/Upper Caves | Spotted B-86 Titan 5593 | -4/Upper Caves | Attracted the attention of an 0b10 base 5635 | -4/Upper Caves | Learned 8 Research zone layouts 5650 | -4/Upper Caves | Lost 3 parts (1p1u1w) 5658 | -4/Upper Caves | Learned 4 Research zone layouts 5722 | -4/Upper Caves | Discovered new exit (range 14) 5735 | -4/Upper Caves | Entered another Upper Caves area 5750 | -4/Upper Caves | Lost 8 parts (4n2u2w) 5790 | -4/Upper Caves | Discovered new exit (range 13) 5805 | -4/Upper Caves | Entered Research 5805 | -3/Research | Evolved 2 slots: Utility x2 5806 | -3/Research | Identified exit to Research 5897 | -3/Research | Build established: Mutant 6205 | -3/Research | Lost 12 parts (1p5n3u3w) 6232 | -3/Research | Core integrity fell below 50% 6268 | -3/Research | Lost 5 parts (2n1u2w) 6278 | -3/Research | Core integrity fell below 20% 6286 | -3/Research | Entered another Research area 6286 | -2/Research | Evolved 2 slots: Power x1, Propulsion x1 6726 | -2/Research | Build established: Tank 6903 | -2/Research | Lost 12 parts (3p4n1u4w) 6982 | -2/Research | Identified exit to Testing 6985 | -2/Research | System corruption reached 10% 7005 | -2/Research | Core integrity fell below 50% 7026 | -2/Research | Core integrity fell below 20% 7052 | -2/Research | Lost 5 parts (1n3u1w) 7118 | -2/Research | Build established: Mutant 7155 | -2/Research | Destroyed by P-80 Master with Gamma Rifle Last Messages --------------- 07115_ Acquired System Shield. 07122_ Dropped Adv. Remote Datajack. 07123_ Acquired Unknown Treads. 07126_ 168IKJ 07129_ Acquired Centrium Wheel. 07136_ Acquired Enh. Hardcell Cannon. 07137_ Adv. Corruption Screen intercepted 1% system corruption. 07139_ Field Propulsion Array destroyed. 07140_ P-80 Master resets P-80 Master, system corruption cleaned. 07140_ Slammed into P-80 Master. 07142_ Lgt. Quantum Reactor destroyed. 07145_ Adv. Corruption Screen intercepted 1% system corruption. 07146_ System corrupted: Heat flow error (+102). 07146_ Door malfunctions. 07146_ Impulse Thruster destroyed. 07152_ Adv. Corruption Screen intercepted 1% system corruption. Map ----- +----------------------------------------------------+ | ?????????????????????????????????????? | | ?? #??????????????????????????????????? | | ? #??????????????????????????????????? | | """ """ #??????????????????????????????????? | | """ """ #??????????????????????????????????? | | """ """ #??????????????????????????????????? | | +??????????????????????????????????? | | #??????????????????????????????????? | | #???????? ?????????????????????????? | | #??????? ???????????????????????? | | ## #??????? #??????????????????????? | | ?# #??????# #??????????????????????? | | ?+ #??????# #??????????????????????? | | ?# +??????# #??????????????????????? | | ?# ######??????# #???####???????????????? | | ?# #???????????# #?? ????????????????? | | ?#| #???????????# #? ????????????????? | | ?# #???????????# # ?????????????????? | | ?# #???????????# # ???????????????????? | | ?# ### #########+### / ?????????????????????? | | ?# #?# ^ #??????????????????????? | | ?# #?# p #??????????????????????? | | ?# #?# p #??????????????????????? | | ?# #?# p ##########?????????????? | | ? ##+######+####### p # #?????????????? | | ? T # #???# @# #?????????????? | | "" # #???# + #?????????????? | | # # """"""" #???# # #?????????????? | | ###?## """"""" #???# # #?????????????? | | ?????# """"""" #???# # #?????????????? | | ?????# #???# # #?????????????? | | ??????? #???# # #?????????????? | | ????????##########???# # #?????????????? | | ?????????????????????# ##########?????????????? | | ?????????????????????# ??????????????????????? | | ?????????????????????# ????????????>?????????? | | ????????????????????? ##?????????????????????? | | ?????????????????????######??????????????????????? | | ?????????????????????????????????????????????????? | | ?????????????????????????????????????????????????? | | ?????????????????????????????????????????????????? | | ?????????????????????????????????????????????????? | | ?????????????????????????????????????????????????? | | ?????????????????????????????????????????????????? | | ?????????????????????????????????????????????????? | | ?????????????????????????????????????????????????? | | ?????????????????????????????????????????????????? | | ?????????????????????????????????????????????????? | | ?????????????????????????????????????????????????? | | ?????????????????????????????????????????????????? | +----------------------------------------------------+ Best States ------------- Heat Dissipation 93 Energy Generation 39 Energy Capacity 410 Matter Stores 300 Matter Capacity 700 Sight Range 16 Robot Scan Range 14 Terrain Scan Range 16 Terrain Scan Density 110 Base Temperature (-) 200 Corruption Block 20 Armor Coverage 825 Core Shielding 30 Utility Shielding 66 Point Defense Rating 80 Weapon Cycling 20 Melee Speed Boost 30 Evasion (%) 62 Targeting Accuracy 8 Target Analysis 5 Recoil Reduction 4 Defensive Hacking 10 Relay Coupler Types 1 Relay Coupler Value 19 Item Schematics ----------------- None Robot Schematics ------------------ None Fabricated ------------ Nothing Repaired ---------- Nothing Studied --------- None Alien Tech Used ----------------- None Achievements -------------- Myspace Challenges ------------ None Game ------ Seed AntimissileSignalAutohacker Manual? 0 Play Time 01:27:10 Cumulative 131.4 hours Start 2026.01.15 @ 22:58:23 End 2026.01.17 @ 17:30:53 Sessions 5 Manual Loads 0 Difficulty Rogue Special Mode None Game No. 187 Rogue 187 Adventurer 0 Explorer 0 Win Type - Total 1 Types 1/0/0/0/0/0/0/0/0/0 Lore% 63 Gallery% 58 Achievement% 42 Wizard Run 0 Options --------- Layout 2 ASCII 0 Keyboard 0 Movement Mouse Keybinds 0 Fullscreen 1 Font 16/SmallcapsGlow Map View 50x49 Zoom Use 72% Tactical HUD 1 Map Filters NONE Filters NONE Steam SD RUN: 9efd35f3-b687-46fe-ae45-35ea090bb076